bitfinex/quotes_SOLUSD_20251115
["timestamp","ask_amount","ask_price","bid_price","bid_amount"]
[1763190865693,0.61,143.2,143.18,2.6426321]
[1763190865896,0.61,143.2,143.16,6.9849954]
[1763190865897,0.61,143.2,143.17,2.6426321]
[1763190866098,0.61,143.2,143.16,2.6426321]
[1763190868082,0.61,143.2,143.16,3.3126321]
[1763190868286,0.61,143.2,143.16,0.67]
[1763190868586,0.61,143.2,143.16,3.3126321]
[1763190869105,0.61,143.2,143.14,6.98599112]
[1763190869306,100.18,143.19,143.16,2.6426321]
[1763190869800,100.79,143.19,143.16,2.6426321]
[1763190870693,0.61,143.18,143.16,2.6426321]
[1763190871100,100.79,143.19,143.16,2.6426321]
[1763190871309,0.61,143.18,143.15,3.3126321]
[1763190871501,0.61,143.18,143.15,2.6426321]
[1763190873716,100.18,143.17,143.13,2.6426321]
[1763190873907,100.18,143.16,143.12,2.6426321]
[1763190874087,100.79,143.16,143.12,2.6426321]
[1763190874292,0.61,143.15,143.11,2.6426321]
[1763190874692,0.61,143.15,143.11,3.3126321]
[1763190874894,0.61,143.15,143.12,2.6426321]
[1763190876614,100.18,143.14,143.09,6.98854526]
[1763190876819,100.18,143.14,143.11,2.6426321]
[1763190877024,100.79,143.14,143.11,2.6426321]
[1763190883628,110.72098926,143.13,143.08,0.71]
[1763190883825,113.36362136,143.13,143.09,2.6426321]
[1763190884125,0.61,143.12,143.09,2.6426321]
[1763190884433,18.08578331,143.12,143.09,2.6426321]
[1763190885005,0.61,143.11,143.09,2.6426321]
[1763190885911,0.61,143.12,143.09,2.6426321]
[1763190886220,7.59952709,143.12,143.09,3.3526321]
[1763190887023,7.59952709,143.12,143.09,2.6426321]
[1763190887628,0.61,143.11,143.09,2.6426321]
[1763190888624,0.61,143.12,143.09,2.6426321]
[1763190889515,100.18,143.11,143.09,2.6426321]
[1763190890431,100.18,143.11,143.09,3.3526321]
[1763190892532,100.18,143.11,143.09,2.6426321]
[1763190893536,100.79,143.11,143.08,3.3526321]
[1763190893716,100.79,143.11,143.08,0.71]
[1763190893915,100.79,143.11,143.08,3.3526321]
[1763190895836,0.61,143.1,143.07,0.71]
[1763190896139,100.79,143.11,143.08,3.3526321]
[1763190896971,100.79,143.11,143.08,2.40148367]
[1763190899057,100.79,143.11,143.09,1.69148367]
[1763190899256,100.18,143.11,143.09,1.69148367]
[1763190899429,100.18,143.11,143.09,2.40148367]
[1763190899632,100.18,143.11,143.09,1.69148367]
[1763190899976,100.79,143.11,143.08,1.69148367]
[1763190900125,100.79,143.11,143.08,2.40148367]
[1763190900759,100.18,143.11,143.07,6.98944371]
[1763190900942,100.18,143.11,143.09,0.71]
[1763190901340,100.18,143.11,143.08,1.69148367]
[1763190901547,100.79,143.11,143.08,0.71]
[1763190901935,0.61,143.1,143.05,0.71]
[1763190902144,100.18,143.09,143.05,2.40148367]
[1763190902658,100.79,143.09,143.05,2.40148367]
[1763190902862,100.79,143.09,143.06,0.71]
[1763190903063,100.79,143.09,143.06,2.40148367]
[1763190903962,100.79,143.09,143.07,1.69148367]
[1763190905471,100.79,143.09,143.06,2.40148367]
[1763190905837,100.79,143.09,143.06,0.71]
[1763190906158,102.48148367,143.08,143.03,2.50148367]
[1763190906459,102.48148367,143.08,143.03,1.79148367]
[1763190906636,2.30148367,143.07,143.03,0.1]
[1763190907031,0.61,143.06,143.03,0.1]
[1763190907452,2.30148367,143.06,143.03,0.1]
[1763190907757,1.69148367,143.04,143.03,0.1]
[1763190907965,11.62247293,143.04,143.03,0.1]
[1763190908154,12.23247293,143.04,143.03,0.1]
[1763190908965,10.54098926,143.04,143.03,0.1]
[1763190911576,12.23247293,143.04,143.03,0.1]
[1763190914578,10.54098926,143.04,143.03,0.1]
[1763190914773,0.61,143.04,143.03,0.1]
[1763190916091,2.44364524,143.04,143.03,0.1]
[1763190918552,34.88367293,143.04,143.03,0.1]
[1763190919580,15.92395659,143.04,143.03,0.1]
[1763190919781,20.9984076,143.04,143.03,0.1]
[1763190920080,18.99840761,143.04,143.03,0.1]
[1763190922256,70.9984076,143.04,143.03,0.1]
[1763190923369,22.6512,142.99,142.94,0.82]
[1763190923685,1.69148367,142.98,142.95,0.72]
[1763190925889,24.34268367,142.99,142.95,0.72]
[1763190926465,24.95268367,142.99,142.95,0.72]
[1763190927487,104.3,142.98,142.95,0.72]
[1763190929888,105.99148367,142.98,142.95,0.72]
[1763190933080,104.3,142.98,142.95,0.72]
[1763190933399,104.3,142.97,142.95,0.72]
[1763190935586,104.3,142.97,142.95,2.41148367]
[1763190936109,104.3,142.97,142.96,0.72]
[1763190937616,104.3,142.97,142.94,0.1]
[1763190937617,24.95268367,142.97,142.94,0.1]
[1763190937780,2.30148367,142.96,142.94,0.1]
[1763190938313,1.69148367,142.96,142.94,0.1]
[1763190938878,1.69148367,142.96,142.94,0.82]
[1763190939817,22.6512,142.96,142.94,0.1]
[1763190940000,24.95268367,142.96,142.94,0.1]
[1763190940519,24.95268367,142.95,142.94,0.1]
[1763190940687,2.30148367,142.95,142.94,0.1]
[1763190941012,1.69148367,142.95,142.94,0.1]
[1763190941823,2.30148367,142.95,142.94,0.1]
[1763190948524,1.69148367,142.95,142.94,0.1]
[1763190948818,22.6512,142.95,142.94,0.8]
[1763190949648,22.6512,142.95,142.94,0.1]
[1763190955126,9.93098926,142.97,142.94,0.8]
[1763190955320,1.69148367,142.99,142.94,2.49148367]
[1763190955739,22.6512,142.98,142.95,0.7]
[1763190957551,11.48031136,143.01,142.96,1.69148367]
[1763190957926,22.6512,142.98,142.97,0.7]
[1763190959149,25.29851122,143.01,142.97,3.34731122]
[1763190959355,104.3,142.98,142.97,3.34731122]
[1763190959530,104.3,142.98,142.97,2.64731122]
[1763190960156,104.3,142.98,142.97,3.34731122]
[1763190960458,104.3,142.98,142.97,0.7]
[1763190961745,104.3,142.98,142.94,0.1]
[1763190961746,104.3,142.98,142.96,0.7]
[1763190962245,107.55731122,142.98,142.94,0.8]
[1763190962430,107.55731122,142.98,142.95,0.7]
[1763190962631,107.55731122,142.98,142.94,0.8]
[1763190962946,106.94731122,142.98,142.94,0.8]
[1763190964234,106.94731122,142.98,142.94,3.44731122]
[1763190964439,106.94731122,142.98,142.95,0.7]
[1763190965655,104.3,142.97,142.95,0.7]
[1763190971448,104.3,142.97,142.95,3.34731122]
[1763190971847,104.3,142.97,142.96,0.67]
[1763190977768,104.3,143.01,142.96,3.31731122]
[1763190977960,104.3,143.01,142.98,2.64731122]
[1763190978362,104.3,143.01,142.99,3.31731122]
[1763190978572,5.85425099,143.07,143.0,2.64731122]
[1763190978758,12.57830048,143.06,143.01,2.64731122]
[1763190978951,4.68538533,143.05,143.01,3.31731122]
[1763190979260,4.68538533,143.05,143.02,0.67]
[1763190979455,7.33269655,143.06,143.02,3.31731122]
[1763190979853,7.33269655,143.06,143.03,0.67]
[1763190980572,4.68538533,143.06,143.03,0.67]
[1763190980774,4.68538533,143.06,143.03,3.31731122]
[1763190981273,22.6512,143.07,143.04,3.31731122]
[1763190981773,107.08947279,143.08,143.05,0.67]
[1763190981978,104.44216157,143.08,143.05,0.67]
[1763190982277,104.3,143.08,143.05,0.67]
[1763190983278,106.94731122,143.08,143.05,0.67]
[1763190984063,104.3,143.08,143.05,0.67]
[1763190986274,104.3,143.07,143.05,0.67]
[1763190987376,104.3,143.07,143.05,3.31731122]
[1763190987761,104.3,143.07,143.06,0.67]
[1763190991586,107.55731122,143.07,143.02,0.67]
[1763190991886,107.55731122,143.06,143.02,0.67]
[1763190992974,107.55731122,143.06,143.02,3.31731122]
[1763190994083,107.55731122,143.06,143.03,0.67]
[1763190994988,104.3,143.05,143.03,0.67]
[1763190996192,104.3,143.05,143.02,3.31731122]
[1763190996495,104.3,143.05,143.03,0.67]
[1763190999794,104.3,143.05,143.03,3.31731122]
[1763190999993,104.3,143.05,143.04,2.64731122]
[1763191000195,104.3,143.05,143.04,3.31731122]
[1763191000499,22.6512,143.09,143.04,10.30836267]
[1763191000796,104.3,143.1,143.07,2.64731122]
[1763191000975,104.3,143.1,143.07,3.31731122]
[1763191001301,104.91,143.1,143.07,3.31731122]
[1763191002404,104.3,143.1,143.08,0.67]
[1763191002900,104.3,143.1,143.08,3.36731122]
[1763191005997,104.3,143.1,143.07,3.36731122]
[1763191007081,104.3,143.1,143.08,0.72]
[1763191009099,104.3,143.1,143.08,3.36731122]
[1763191009812,104.3,143.1,143.09,0.72]
[1763191011331,104.3,143.1,143.09,3.36731122]
[1763191012799,104.3,143.1,143.02,24.46958225]
[1763191012996,107.55731122,143.1,143.06,3.36731122]
[1763191013514,104.91,143.1,143.07,0.72]
[1763191015532,107.55731122,143.1,143.06,0.72]
[1763191015700,0.61,143.09,143.06,0.72]
[1763191016107,104.3,143.08,143.05,0.72]
[1763191016498,0.61,143.07,143.04,0.72]
[1763191016718,107.55731122,143.08,143.04,0.72]
[1763191016944,3.25731122,143.07,143.02,2.64731122]
[1763191017249,3.25731122,143.07,143.03,0.72]
[1763191017970,3.25731122,143.06,143.01,3.36731122]
[1763191018162,25.29851122,143.05,143.01,3.36731122]
[1763191018334,25.29851122,143.05,143.01,0.72]
[1763191018533,25.90851122,143.04,143.0,3.36731122]
[1763191018750,23.2612,143.04,143.0,3.36731122]
[1763191018954,23.2612,143.04,143.0,2.41342205]
[1763191019549,24.95462205,143.04,143.0,0.72]
[1763191021446,24.34462205,143.04,142.99,1.69342205]
[1763191021754,24.95462205,143.03,142.98,1.69342205]
[1763191021962,104.3,143.02,142.99,0.72]
[1763191024757,104.3,143.02,142.99,2.41342205]
[1763191025673,104.3,143.02,143.0,0.72]
[1763191026685,104.3,143.02,142.98,1.69342205]
[1763191026889,104.3,143.02,143.0,0.72]
[1763191028491,104.3,143.01,142.95,6.99545295]
[1763191028800,104.3,143.01,142.99,1.69342205]
[1763191029002,104.3,143.01,142.98,1.69342205]
[1763191029365,104.91,143.01,142.98,2.41342205]
[1763191029571,104.3,143.01,142.98,2.41342205]
[1763191030075,104.3,143.01,142.99,0.72]
[1763191032101,104.3,143.01,142.99,2.41342205]
[1763191036896,104.3,143.01,142.99,0.72]
[1763191038595,104.3,143.01,142.99,2.41342205]
[1763191038980,0.61,143.0,142.97,1.69342205]
[1763191039201,0.61,143.0,142.97,2.35342205]
[1763191039401,104.3,143.01,142.97,2.35342205]
[1763191039602,104.91,143.01,142.97,2.35342205]
[1763191039804,104.91,143.01,142.97,1.69342205]
[1763191039986,104.91,143.01,142.98,0.66]
[1763191040878,104.3,143.01,142.99,1.69342205]
[1763191043202,104.3,143.01,142.99,2.35342205]
[1763191043503,104.3,143.01,142.99,0.66]
[1763191043703,104.3,143.01,142.99,2.35342205]
[1763191046678,104.3,143.01,142.99,0.66]
[1763191048909,104.3,143.01,143.0,1.69342205]
[1763191049111,104.3,143.05,143.0,1.69342205]
[1763191049276,104.3,143.05,143.02,1.69342205]
[1763191049483,104.3,143.05,143.03,1.69342205]
[1763191049915,104.3,143.05,143.03,2.35342205]
[1763191050612,104.3,143.05,143.02,2.35342205]
[1763191050817,104.3,143.05,143.02,1.69342205]
[1763191050985,104.3,143.05,143.03,0.66]
[1763191052289,104.3,143.05,143.03,2.35342205]
[1763191052805,104.3,143.05,143.04,0.66]
[1763191054625,104.3,143.05,143.03,2.35342205]
[1763191054919,104.3,143.05,143.03,1.69342205]
[1763191055097,104.3,143.05,143.03,2.35342205]
[1763191055716,104.3,143.05,143.03,0.66]
[1763191056916,104.3,143.05,143.03,2.35342205]
[1763191057597,104.3,143.05,143.04,0.66]
[1763191057798,104.3,143.05,143.04,2.35342205]
[1763191058017,127.5612,143.08,143.04,2.35342205]
[1763191058624,0.61,143.07,143.04,2.35342205]
[1763191060005,0.61,143.07,143.04,1.69342205]
[1763191061906,0.61,143.07,143.03,0.66]
[1763191062106,0.61,143.07,143.04,1.69342205]
[1763191062721,0.61,143.07,143.04,2.35342205]
[1763191064723,104.3,143.08,143.05,2.39342205]
[1763191065226,104.3,143.08,143.06,0.7]
[1763191065410,104.3,143.08,143.06,2.39342205]
[1763191066424,104.3,143.08,143.07,0.7]
[1763191066624,104.3,143.08,143.07,2.39342205]
[1763191067913,127.5612,143.12,143.07,2.39342205]
[1763191068229,127.5612,143.12,143.08,2.39342205]
[1763191069740,127.5612,143.12,143.09,0.7]
[1763191070029,127.5612,143.12,143.09,2.39342205]
[1763191070219,126.9512,143.12,143.09,2.39342205]
[1763191070420,127.5612,143.12,143.09,1.69342205]
[1763191070605,129.25462205,143.12,143.08,2.39342205]
[1763191071735,129.25462205,143.12,143.08,0.7]
[1763191077233,104.3,143.11,143.08,0.7]
[1763191077647,1.69342205,143.09,143.03,2.39342205]
[1763191077831,104.91,143.1,143.03,2.39342205]
[1763191077832,1.69342205,143.08,143.03,2.39342205]
[1763191078034,24.34462205,143.07,143.02,1.69342205]
[1763191078328,24.34462205,143.07,143.02,0.7]
[1763191078528,0.61,143.06,143.03,0.7]
[1763191078731,23.2612,143.07,143.03,2.39342205]
[1763191078946,23.2612,143.07,143.03,3.34466173]
[1763191080360,23.2612,143.07,143.04,2.64466173]
[1763191080644,23.2612,143.07,143.03,3.34466173]
[1763191081757,25.90586173,143.06,143.02,2.64466173]
[1763191082141,25.90586173,143.05,143.0,2.64466173]
[1763191082447,2.64466173,143.04,143.0,3.34466173]
[1763191082650,3.25466173,143.04,143.0,3.34466173]
[1763191082853,3.25466173,143.04,143.01,0.7]
[1763191083042,0.61,143.04,143.01,0.7]
[1763191083445,0.61,143.04,143.01,3.34466173]
[1763191083639,25.29586173,143.05,143.01,3.34466173]
[1763191083844,25.90586173,143.05,143.01,3.34466173]
[1763191084144,0.61,143.04,143.01,3.34466173]
[1763191084956,22.6512,143.05,143.02,0.7]
[1763191085257,106.94466173,143.08,143.03,2.64466173]
[1763191085447,104.3,143.08,143.05,2.64466173]
[1763191085758,104.3,143.08,143.06,0.7]
[1763191086139,104.3,143.08,143.05,2.64466173]
[1763191086340,104.3,143.08,143.05,3.34466173]
[1763191088635,104.3,143.08,143.06,3.34466173]
[1763191089048,104.3,143.08,143.06,0.7]
[1763191090239,104.3,143.08,143.06,3.34466173]
[1763191090438,104.3,143.08,143.05,3.34466173]
[1763191090639,104.91,143.08,143.05,3.34466173]
[1763191090850,104.91,143.08,143.04,2.64466173]
[1763191091057,107.55466173,143.08,143.04,2.64466173]
[1763191091257,0.61,143.07,143.04,3.31466173]
[1763191091739,106.94466173,143.08,143.04,3.31466173]
[1763191091941,107.55466173,143.08,143.05,0.67]
[1763191093061,104.91,143.08,143.04,2.64466173]
[1763191093259,0.61,143.07,143.04,3.33466173]
[1763191094466,0.61,143.07,143.02,2.64466173]
[1763191094638,0.61,143.07,143.03,3.33466173]
[1763191094837,0.61,143.07,143.03,0.69]
[1763191095055,0.61,143.07,143.03,3.33466173]
[1763191096348,106.94466173,143.08,143.0,6.99270308]
[1763191096349,104.3,143.08,143.04,3.33466173]
[1763191096561,104.3,143.08,143.05,2.64466173]
[1763191096741,104.3,143.08,143.05,3.33466173]
[1763191097744,104.3,143.08,143.07,2.64466173]
[1763191097969,104.3,143.08,143.07,3.33466173]
[1763191101372,126.9512,143.13,143.07,10.32424243]
[1763191101554,104.3,143.13,143.11,2.64466173]
[1763191101759,104.91,143.13,143.09,3.33466173]
[1763191101968,104.3,143.13,143.09,3.33466173]
[1763191102167,104.3,143.13,143.1,0.69]
[1763191103261,104.3,143.13,143.09,2.64466173]
[1763191103464,104.91,143.13,143.09,3.33466173]
[1763191103848,107.55466173,143.13,143.09,3.33466173]
[1763191104043,0.61,143.12,143.09,3.33466173]
[1763191104572,107.55466173,143.13,143.09,3.33466173]
[1763191105077,0.61,143.12,143.09,3.33466173]
[1763191105273,0.61,143.12,143.08,2.64466173]
[1763191105476,3.25466173,143.12,143.07,3.33466173]
[1763191105660,0.61,143.12,143.08,2.64466173]
[1763191105973,0.61,143.12,143.09,2.64466173]
[1763191106180,106.94466173,143.13,143.09,2.64466173]
[1763191106181,104.3,143.13,143.1,2.64466173]
[1763191106375,104.91,143.13,143.1,3.33466173]
[1763191106556,104.91,143.13,143.11,3.33466173]
[1763191106557,104.3,143.13,143.11,3.33466173]
[1763191107164,0.61,143.16,143.12,3.33466173]
[1763191107371,5.29142031,143.16,143.12,3.33466173]
[1763191108879,126.9512,143.17,143.13,0.69]
[1763191109092,127.5612,143.17,143.13,3.33466173]
[1763191109253,127.5612,143.17,143.14,2.64466173]
[1763191110357,127.5612,143.17,143.13,3.33466173]
[1763191110555,126.9512,143.17,143.14,2.64466173]
[1763191110768,126.9512,143.17,143.14,3.33466173]
[1763191111481,0.61,143.16,143.14,2.64466173]
[1763191111676,127.5612,143.17,143.13,2.64466173]
[1763191112077,22.8512,143.18,143.15,2.64466173]
[1763191112287,0.2,143.18,143.15,2.64466173]
[1763191112597,22.8512,143.18,143.16,2.64466173]
[1763191113180,22.8512,143.18,143.15,0.69]
[1763191113498,22.8512,143.18,143.16,2.64466173]
[1763191113870,22.8512,143.18,143.16,3.33466173]
[1763191114099,0.2,143.18,143.15,2.64466173]
[1763191114406,0.2,143.18,143.15,3.33466173]
[1763191115191,0.81,143.18,143.13,0.69]
[1763191115369,2.64466173,143.15,143.1,0.69]
[1763191115695,0.61,143.14,143.1,3.33466173]
[1763191115885,0.14216157,143.17,143.06,27.26304261]
[1763191116085,2.64466173,143.16,143.12,2.64466173]
[1763191116389,0.61,143.17,143.11,2.64466173]
[1763191116390,2.64466173,143.15,143.11,2.64466173]
[1763191116906,3.25466173,143.15,143.11,3.33466173]
[1763191117071,0.61,143.15,143.11,3.33466173]
[1763191117590,3.25466173,143.15,143.11,3.33466173]
[1763191117776,3.25466173,143.15,143.1,3.33466173]
[1763191118092,3.25466173,143.15,143.11,2.64466173]
[1763191118289,0.61,143.15,143.11,3.33466173]
[1763191120190,2.64466173,143.16,143.12,3.33466173]
[1763191120388,3.25466173,143.16,143.12,3.33466173]
[1763191121095,22.6512,143.14,143.12,3.33466173]
[1763191122098,104.3,143.17,143.13,3.33466173]
[1763191122275,104.3,143.17,143.14,3.33466173]
[1763191123496,22.8512,143.18,143.14,2.64466173]
[1763191123681,0.2,143.18,143.15,0.69]
[1763191126400,0.2,143.18,143.15,3.33466173]
[1763191126696,0.2,143.18,143.16,0.69]
[1763191127395,0.2,143.18,143.15,3.33466173]
[1763191127785,0.2,143.18,143.16,0.69]
[1763191128101,0.2,143.18,143.15,2.64466173]
[1763191128400,0.2,143.18,143.16,0.69]
[1763191128889,0.81,143.18,143.14,3.33466173]
[1763191129086,25.29586173,143.17,143.12,2.64466173]
[1763191129388,2.64466173,143.16,143.12,2.64466173]
[1763191129701,3.25466173,143.16,143.12,3.33466173]
[1763191130489,0.61,143.16,143.12,3.33466173]
[1763191130797,23.2612,143.17,143.13,3.33466173]
[1763191131116,25.90586173,143.17,143.13,3.33466173]
[1763191131800,23.2612,143.17,143.13,3.33466173]
[1763191133308,0.61,143.16,143.13,3.33466173]
[1763191133807,22.6512,143.17,143.13,2.64466173]
[1763191133995,22.6512,143.17,143.14,3.33466173]
[1763191135004,0.2,143.18,143.15,3.33466173]
[1763191135208,0.2,143.18,143.16,2.64466173]
[1763191135394,0.2,143.18,143.16,3.33466173]
[1763191135707,22.8512,143.18,143.17,0.69]
[1763191137189,0.2,143.18,143.17,0.69]
[1763191137897,22.6512,143.17,143.13,2.64466173]
[1763191138204,25.29586173,143.17,143.12,2.64466173]
[1763191138405,0.61,143.16,143.12,3.33466173]
[1763191139108,3.25466173,143.16,143.12,3.33466173]
[1763191139413,0.61,143.16,143.12,3.33466173]
[1763191140912,0.61,143.16,143.12,2.38047837]
[1763191141126,129.25167837,143.17,143.13,2.38047837]
[1763191141424,129.25167837,143.17,143.13,1.69047837]
[1763191141594,104.3,143.16,143.13,0.69]
[1763191141794,104.91,143.16,143.13,0.69]
[1763191142613,104.3,143.16,143.13,2.38047837]
[1763191145229,104.3,143.16,143.13,0.69]
[1763191145405,104.3,143.16,143.09,6.98844798]
[1763191145716,104.91,143.15,143.11,1.69047837]
[1763191145915,104.3,143.15,143.11,1.69047837]
[1763191146224,104.3,143.15,143.12,0.69]
[1763191146713,104.3,143.15,143.12,2.38047837]
[1763191146930,104.3,143.15,143.13,1.69047837]
[1763191147092,104.3,143.15,143.13,2.38047837]
[1763191147295,104.3,143.15,143.13,0.69]
[1763191148324,104.3,143.15,143.14,1.69047837]
[1763191148521,104.3,143.15,143.14,2.38047837]
[1763191149425,0.2,143.18,143.14,9.36657617]
[1763191149627,0.2,143.18,143.16,1.69047837]
[1763191149921,0.2,143.18,143.17,1.69047837]
[1763191150105,0.2,143.18,143.17,2.38047837]
[1763191152420,0.2,143.18,143.16,1.69047837]
[1763191152605,0.2,143.18,143.15,2.34047837]
[1763191154700,0.2,143.18,143.16,1.69047837]
[1763191155207,0.2,143.18,143.16,2.37047837]
[1763191155399,0.2,143.18,143.17,0.68]
[1763191156326,0.2,143.18,143.16,2.37047837]
[1763191158626,0.2,143.18,143.17,0.68]
[1763191159448,0.81,143.18,143.15,1.69047837]
[1763191160413,0.81,143.18,143.15,2.37047837]
[1763191161531,0.81,143.18,143.15,0.68]
[1763191161832,22.6512,143.16,143.13,2.37047837]
[1763191163022,22.6512,143.16,143.14,0.68]
[1763191163332,22.6512,143.16,143.14,2.37047837]
[1763191163925,22.6512,143.16,143.14,1.69047837]
[1763191165835,22.6512,143.16,143.14,2.37047837]
[1763191166249,22.6512,143.16,143.14,0.68]
[1763191166540,22.6512,143.16,143.13,2.37047837]
[1763191166951,22.6512,143.16,143.13,1.69047837]
[1763191167143,22.6512,143.16,143.14,0.68]
[1763191167635,22.6512,143.16,143.13,2.37047837]
[1763191168140,22.6512,143.16,143.14,0.68]
[1763191168826,0.61,143.15,143.12,1.69047837]
[1763191169316,104.91,143.15,143.11,1.69047837]
[1763191169736,104.91,143.15,143.11,2.37047837]
[1763191170134,104.3,143.15,143.11,2.37047837]
[1763191170344,0.61,143.14,143.11,2.37047837]
[1763191170657,104.91,143.15,143.12,0.68]
[1763191170940,104.3,143.15,143.12,2.37047837]
[1763191171513,104.91,143.15,143.11,1.69047837]
[1763191171934,104.3,143.15,143.11,2.37047837]
[1763191172241,0.61,143.14,143.11,2.37047837]
[1763191172455,0.61,143.14,143.1,1.69047837]
[1763191172657,0.61,143.14,143.1,2.37047837]
[1763191172944,0.61,143.14,143.11,0.68]
[1763191173144,106.60047837,143.15,143.11,0.68]
[1763191173348,104.91,143.15,143.11,2.37047837]
[1763191175848,104.3,143.15,143.12,0.68]
[1763191176444,104.91,143.15,143.12,0.68]
[1763191176950,104.91,143.15,143.11,1.69047837]
[1763191177144,104.91,143.15,143.11,2.37047837]
[1763191178650,104.91,143.15,143.11,1.69047837]
[1763191178945,104.91,143.15,143.12,2.37047837]
[1763191179132,0.61,143.14,143.11,1.69047837]
[1763191179924,104.3,143.15,143.12,0.68]
[1763191180222,104.3,143.15,143.13,1.69047837]
[1763191180422,104.3,143.15,143.12,0.68]
[1763191181656,104.3,143.15,143.12,7.66711128]
[1763191182152,104.3,143.15,143.14,1.69047837]
[1763191182655,104.3,143.15,143.14,2.37047837]
[1763191183652,104.3,143.15,143.14,0.68]
[1763191184351,104.3,143.15,143.14,2.37047837]
[1763191186156,104.3,143.15,143.14,0.68]
[1763191189053,104.3,143.15,143.1,13.74985495]
[1763191189360,104.3,143.15,143.14,0.72]
[1763191196262,104.3,143.15,143.13,2.41047837]
[1763191197267,104.3,143.15,143.14,0.72]
[1763191197753,104.3,143.15,143.13,1.69047837]
[1763191197956,104.3,143.15,143.13,2.41047837]
[1763191198966,104.3,143.15,143.14,0.72]
[1763191201374,104.3,143.15,143.13,2.41047837]
[1763191202969,104.3,143.15,143.13,3.36107384]
[1763191203795,104.3,143.15,143.14,3.36107384]
[1763191204076,104.3,143.15,143.13,2.64107384]
[1763191205144,104.3,143.15,143.14,0.72]
[1763191210577,104.3,143.15,143.14,3.36107384]
[1763191211073,104.3,143.15,143.14,2.64107384]
[1763191212180,104.3,143.15,143.13,3.34107384]
[1763191212682,104.3,143.15,143.14,0.7]
[1763191227011,104.3,143.15,143.13,2.64107384]
[1763191227295,104.3,143.15,143.13,3.30107384]
[1763191228595,104.3,143.15,143.12,2.64107384]
[1763191228789,0.61,143.14,143.08,0.66]
[1763191229093,0.61,143.14,143.1,2.64107384]
[1763191229286,5.31462606,143.14,143.1,3.30107384]
[1763191230489,5.31462606,143.14,143.11,0.66]
[1763191230789,5.31462606,143.14,143.11,3.30107384]
[1763191231379,0.61,143.13,143.1,3.30107384]
[1763191234687,4.70462606,143.14,143.11,3.30107384]
[1763191234890,4.70462606,143.14,143.12,0.66]
[1763191235493,4.70462606,143.14,143.11,2.64107384]
[1763191235698,4.70462606,143.14,143.11,3.30107384]
[1763191236210,4.69729168,143.14,143.11,3.30107384]
[1763191239279,4.69729168,143.14,143.12,0.66]
[1763191240209,4.69729168,143.14,143.11,3.30107384]
[1763191240578,4.69729168,143.14,143.12,0.66]
[1763191242592,104.91,143.15,143.12,0.66]
[1763191243108,5.30449319,143.14,143.11,0.7]
[1763191244024,0.61,143.13,143.1,3.34107384]
[1763191247106,4.69449319,143.14,143.11,0.7]
[1763191247313,5.30449319,143.14,143.11,0.7]
[1763191247689,0.61,143.13,143.1,3.34107384]
[1763191247886,3.25107384,143.13,143.09,3.34107384]
[1763191248414,0.61,143.12,143.09,3.34107384]
[1763191248916,0.61,143.11,143.07,0.7]
[1763191249112,0.61,143.11,143.08,0.7]
[1763191249419,0.61,143.11,143.07,3.34107384]
[1763191250090,5.30449319,143.11,143.07,3.34107384]
[1763191250890,0.61,143.1,143.07,3.34107384]
[1763191251692,0.61,143.1,143.07,0.7]
[1763191251910,0.61,143.1,143.06,2.64107384]
[1763191252190,0.61,143.1,143.07,0.7]